{"text_format":"3","workbook":"xlsx","n_sheets":2,"sheets":["Elenco dell'insegnante"," Dati elenco"],"not_rendered":{"defined_names":6},"read":"whole","date_system":"1900"}

{"sheet":"Elenco dell'insegnante","index":0,"n_rows":10,"n_cols":10,"rows_kept":10,"merged":[[0,1,0,2],[0,4,0,8],[2,9,6,9]]}
[null,"Elenco dell'insegnante",null,"Dati elenco","Questa cella contiene la legenda dei colori per lo stato: Non iniziata è in stile normale, In corso è R=91 G=133 B=49, In scadenza oggi è R=118 G=88 B=0, In attesa è R=109 G=66 B=111, Completata è barrata, Annullata è R=191 G=191 B=191 e Scaduta è R=191 G=33 B=28."]
[null,"VOCE","CATEGORIA","DATA DI INIZIO","DATA DI SCADENZA","GIORNI RIMANENTI","STATO","NOTE"]
[null,"Pulire i cassetti","Ufficio",{"$f":"DATE(YEAR(TODAY()),MONTH(TODAY())-1,6)","v":"2018-04-06"},{"$f":"DATE(YEAR(TODAY()),MONTH(TODAY())-1,16)","v":"2018-04-16"},{"$f":"IFERROR(IF(COUNT(Elenco[[#This Row],[DATA DI INIZIO]]:Elenco[[#This Row],[DATA DI SCADENZA]])<>2,\"\",IF(OR(Elenco[[#This Row],[STATO]]=\"Completata\",Elenco[[#This Row],[STATO]]=\"Annullata\",Elenco[[#This Row],[STATO]]=\"In attesa\"),\"\",Elenco[[#This Row],[DATA DI SCADENZA]]-TODAY())),\"\")","v":""},"Completata",null,null,"Il filtro dei dati Stato si trova in questa cella. Per filtrare l'elenco in base allo stato, selezionare uno stato nel filtro dei dati. Tenere premuto CTRL per selezionare più opzioni."]
[null,"Ordinare gli adesivi","Cancelleria",{"$f":"DATE(YEAR(TODAY()),MONTH(TODAY())-1,11)","v":"2018-04-11"},{"$f":"DATE(YEAR(TODAY()),MONTH(TODAY())-1,21)","v":"2018-04-21"},{"$f":"IFERROR(IF(COUNT(Elenco[[#This Row],[DATA DI INIZIO]]:Elenco[[#This Row],[DATA DI SCADENZA]])<>2,\"\",IF(OR(Elenco[[#This Row],[STATO]]=\"Completata\",Elenco[[#This Row],[STATO]]=\"Annullata\",Elenco[[#This Row],[STATO]]=\"In attesa\"),\"\",Elenco[[#This Row],[DATA DI SCADENZA]]-TODAY())),\"\")","v":""},"Completata"]
[null,"Pavimenti lavati e incerati","Altro",{"$f":"DATE(YEAR(TODAY()),MONTH(TODAY()-1),DAY(TODAY())-25)","v":"2018-04-13"},{"$f":"DATE(YEAR(TODAY()),MONTH(TODAY())-1,26)","v":"2018-04-26"},{"$f":"IFERROR(IF(COUNT(Elenco[[#This Row],[DATA DI INIZIO]]:Elenco[[#This Row],[DATA DI SCADENZA]])<>2,\"\",IF(OR(Elenco[[#This Row],[STATO]]=\"Completata\",Elenco[[#This Row],[STATO]]=\"Annullata\",Elenco[[#This Row],[STATO]]=\"In attesa\"),\"\",Elenco[[#This Row],[DATA DI SCADENZA]]-TODAY())),\"\")","v":""},"Completata"]
[null,"Etichette con i nomi create","Cancelleria",{"$f":"DATE(YEAR(TODAY()),MONTH(TODAY())-1,21)","v":"2018-04-21"},{"$f":"DATE(YEAR(TODAY()),MONTH(TODAY())-1,1)","v":"2018-04-01"},{"$f":"IFERROR(IF(COUNT(Elenco[[#This Row],[DATA DI INIZIO]]:Elenco[[#This Row],[DATA DI SCADENZA]])<>2,\"\",IF(OR(Elenco[[#This Row],[STATO]]=\"Completata\",Elenco[[#This Row],[STATO]]=\"Annullata\",Elenco[[#This Row],[STATO]]=\"In attesa\"),\"\",Elenco[[#This Row],[DATA DI SCADENZA]]-TODAY())),\"\")","v":""},"In attesa"]
[null,"Valutare le relazioni scritte del trimestre","Valutazioni",{"$f":"DATE(YEAR(TODAY()),MONTH(TODAY())-1,26)","v":"2018-04-26"},{"$f":"TODAY()-5","v":"2018-05-03"},{"$f":"IFERROR(IF(COUNT(Elenco[[#This Row],[DATA DI INIZIO]]:Elenco[[#This Row],[DATA DI SCADENZA]])<>2,\"\",IF(OR(Elenco[[#This Row],[STATO]]=\"Completata\",Elenco[[#This Row],[STATO]]=\"Annullata\",Elenco[[#This Row],[STATO]]=\"In attesa\"),\"\",Elenco[[#This Row],[DATA DI SCADENZA]]-TODAY())),\"\")","v":-5},"Scaduta"]
[null,"Inviare promemoria per i fogli dei permessi","Telefonate",{"$f":"DATE(YEAR(TODAY()),MONTH(TODAY()),1)","v":"2018-05-01"},{"$f":"TODAY()","v":"2018-05-08"},{"$f":"IFERROR(IF(COUNT(Elenco[[#This Row],[DATA DI INIZIO]]:Elenco[[#This Row],[DATA DI SCADENZA]])<>2,\"\",IF(OR(Elenco[[#This Row],[STATO]]=\"Completata\",Elenco[[#This Row],[STATO]]=\"Annullata\",Elenco[[#This Row],[STATO]]=\"In attesa\"),\"\",Elenco[[#This Row],[DATA DI SCADENZA]]-TODAY())),\"\")","v":""},"Annullata"]
[null,"Valutare le relazioni orali","Ufficio",{"$f":"DATE(YEAR(TODAY()),MONTH(TODAY()),7)","v":"2018-05-07"},{"$f":"DATE(YEAR(TODAY()),MONTH(TODAY()),17)","v":"2018-05-17"},{"$f":"IFERROR(IF(COUNT(Elenco[[#This Row],[DATA DI INIZIO]]:Elenco[[#This Row],[DATA DI SCADENZA]])<>2,\"\",IF(OR(Elenco[[#This Row],[STATO]]=\"Completata\",Elenco[[#This Row],[STATO]]=\"Annullata\",Elenco[[#This Row],[STATO]]=\"In attesa\"),\"\",Elenco[[#This Row],[DATA DI SCADENZA]]-TODAY())),\"\")","v":9},"In corso"]
[null,"Temperare le matite","Cancelleria",{"$f":"DATE(YEAR(TODAY()),MONTH(TODAY()),11)","v":"2018-05-11"},{"$f":"DATE(YEAR(TODAY()),MONTH(TODAY()),10)","v":"2018-05-10"},{"$f":"IFERROR(IF(COUNT(Elenco[[#This Row],[DATA DI INIZIO]]:Elenco[[#This Row],[DATA DI SCADENZA]])<>2,\"\",IF(OR(Elenco[[#This Row],[STATO]]=\"Completata\",Elenco[[#This Row],[STATO]]=\"Annullata\",Elenco[[#This Row],[STATO]]=\"In attesa\"),\"\",Elenco[[#This Row],[DATA DI SCADENZA]]-TODAY())),\"\")","v":2},"In corso"]

{"sheet":" Dati elenco","index":1,"n_rows":13,"n_cols":3,"rows_kept":13}
[null,"Dati elenco","Elenco dell'insegnante"]
[null,"Categoria"]
[null,"Ufficio"]
[null,"Cancelleria"]
[null,"Da acquistare"]
[null,"Telefonate"]
[null,"Nuove idee"]
[null,"Valutazioni"]
[null,"Team"]
[null,"Interventi"]
[null,"Computer"]
[null,"Personale"]
[null,"Altro"]